Workbook

Sheet 例題23 １次元拡散球座標伴一次反応
A1: 微分方程式数 | B1: 2 | F1: 定数
A2: y= | B2: cA | C2: g | F2: k1= | G2: 2.6 | H2: /s
A3: 0.00145 | B3: 0.06137447317 | C3: 7.529651002e-09 | F3: DAB= | G3: 7e-07 | H3: m2/s | I3: a=Vp/Sp=R/3 | J3: =G4/3 -> 0.0005
B4: cA'= | C4: g'= | F4: R= | G4: 0.0015 | H4: m | I4: Φ | J4: =(G2*J3^2/G3)^0.5 -> 0.9636241117
A5: 微分方程式→ | B5: =-C3/(G4-A3)^2 -> -3.011860401 | C5: =-1*(G4-A3)^2*G2*B3/G3 -> -0.0005699058223
A7: 積分区間y=[a, | B7: 0
A8: b] | B8: 0.00145
A9: 積分刻み幅Δy | B9: 5e-05 | Q9: 形状と濃度分布
A10: 計算結果 | J10: (dcA/dy) | K10: 4πR2DABcA' | R10: 球 | S10: 円柱 | T10: 平板
A11: y[m] | B11: cA[mol/m3] | C11: g | G11: r[m] | H11: r+-0.5Δr殻体積 | I11: mol | K11: mol/s | Q11: y[m] | R11: cA[mol/m3] | S11: cA[mol/m3] | T11: cA[mol/m3]
A12: 0 | B12: 0.19 | C12: 0.00054342 | F12: ←初期値 | G12: =$G$4-A12 -> 0.0015 | H12: =(3*3.14/4)*((G12)^3-(G12-$B$9/2)^3) -> 3.908196094e-10 | I12: =H12*B12 -> 7.425572578e-11 | J12: =(B12-B13)/A13 -> 232.2015112 | K12: =J12*G3*4*G4^2*3.14 -> 4.593410295e-09 | Q12: 0 | R12: 0.19 | S12: 0.19 | T12: 0.19
A13: 5e-05 | B13: 0.1783899244 | C13: 0.0004691116754 | G13: =$G$4-A13 -> 0.00145 | H13: =(3*3.14/4)*((G13+$B$9/2)^3-(G13-$B$9/2)^3) -> 7.427817188e-10 | I13: =H13*B13 -> 1.325047747e-10 | Q13: 5e-05 | R13: 0.1783899244 | S13: 0.1759581732 | T13: 0.1727012155
A14: 0.0001 | B14: 0.1676648437 | C14: 0.0004039578228 | G14: 0.0014 | H14: =(3*3.14/4)*((G14+$B$9/2)^3-(G14-$B$9/2)^3) -> 6.924435938e-10 | I14: 1.160984469e-10 | Q14: 0.0001 | R14: 0.1676648437 | S14: 0.1630843999 | T14: 0.157003509
A15: 0.00015 | B15: 0.157758634 | C15: 0.0003469097853 | G15: 0.00135 | H15: 6.438717188e-10 | I15: 1.015763228e-10 | Q15: 0.00015 | R15: 0.157758634 | S15: 0.1512827311 | T15: 0.1427613569
A16: 0.0002 | B16: 0.1486105373 | C16: 0.0002970345139 | G16: 0.0013 | H16: 5.970660938e-10 | I16: 8.873031297e-11 | Q16: 0.0002 | R16: 0.1486105373 | S16: 0.1404654952 | T16: 0.1298427297
A17: 0.00025 | B17: 0.1401647371 | C17: 0.0002535021684 | G17: 0.00125 | H17: 5.520267188e-10 | I17: 7.737467988e-11 | Q17: 0.00025 | R17: 0.1401647371 | S17: 0.1305525971 | T17: 0.1181278685
A18: 0.0003 | B18: 0.1323699698 | C18: 0.0002155750153 | G18: 0.0012 | H18: 5.087535938e-10 | I18: 6.734369783e-11 | Q18: 0.0003 | R18: 0.1323699698 | S18: 0.1214708801 | T18: 0.107508174
A19: 0.00035 | B19: 0.1251791688 | C19: 0.0001825974888 | G19: 0.00115 | H19: 4.672467188e-10 | I19: 5.848955588e-11 | Q19: 0.00035 | R19: 0.1251791688 | S19: 0.1131535434 | T19: 0.09788520065
A20: 0.0004 | B20: 0.1185491386 | C20: 0.0001539872935 | G20: 0.0011 | H20: 4.275060938e-10 | I20: 5.068047917e-11 | Q20: 0.0004 | R20: 0.1185491386 | S20: 0.1055396113 | T20: 0.08916974334
A21: 0.00045 | B21: 0.1124402566 | C21: 0.0001292274404 | G21: 0.00105 | H21: 3.895317188e-10 | I21: 4.37990464e-11 | Q21: 0.00045 | R21: 0.1124402566 | S21: 0.09857344901 | T21: 0.08128101087
A22: 0.0005 | B22: 0.1068162001 | C22: 0.0001078591183 | G22: 0.001 | H22: 3.533235937e-10 | I22: 3.774068368e-11 | Q22: 0.0005 | R22: 0.1068162001 | S22: 0.09220432206 | T22: 0.07414587689
A23: 0.00055 | B23: 0.1016436971 | C23: 8.947531334e-05 | G23: 0.00095 | H23: 3.188817187e-10 | I23: 3.241231684e-11 | Q23: 0.00055 | R23: 0.1016436971 | S23: 0.08638599467 | T23: 0.06769820204
A24: 0.0006 | B24: 0.09689229871 | C24: 7.371509758e-05 | G24: 0.0009 | H24: 2.862060937e-10 | I24: 2.773116633e-11 | Q24: 0.0006 | R24: 0.09689229871 | S24: 0.0810763643 | T24: 0.0618782209
A25: 0.00065 | B25: 0.09253417064 | C25: 6.025851512e-05 | G25: 0.00085 | H25: 2.552967187e-10 | I25: 2.362367014e-11 | Q25: 0.00065 | R25: 0.09253417064 | S25: 0.07623712918 | T25: 0.05663198799
A26: 0.0007 | B26: 0.08854390422 | C26: 4.882200298e-05 | G26: 0.0008 | H26: 2.261535937e-10 | I26: 2.002452214e-11 | Q26: 0.0007 | R26: 0.08854390422 | S26: 0.07183348597 | T26: 0.05191087775
A27: 0.00075 | B27: 0.0848983437 | C27: 3.915428857e-05 | G27: 0.00075 | H27: 1.987767187e-10 | I27: 1.687581419e-11 | Q27: 0.00075 | R27: 0.0848983437 | S27: 0.06783385517 | T27: 0.04767113385
A28: 0.0008 | B28: 0.08157642955 | C28: 3.103271232e-05 | G28: 0.0007 | H28: 1.731660937e-10 | I28: 1.412627165e-11 | Q28: 0.0008 | R28: 0.08157642955 | S28: 0.06420963158 | T28: 0.04387346364
A29: 0.00085 | B29: 0.07855905639 | C29: 2.425992883e-05 | G29: 0.00065 | H29: 1.493217187e-10 | I29: 1.173057332e-11 | Q29: 0.00085 | R29: 0.07855905639 | S29: 0.06093495784 | T29: 0.04048267402
A30: 0.0009 | B30: 0.07582894465 | C30: 1.866094452e-05 | G30: 0.0006 | H30: 1.272435937e-10 | I30: 9.648747427e-12 | Q30: 0.0009 | R30: 0.07582894465 | S30: 0.05798651869 | T30: 0.03746734527
A31: 0.00095 | B31: 0.07337052502 | C31: 1.408045378e-05 | G31: 0.00055 | H31: 1.069317187e-10 | I31: 7.845636346e-12 | Q31: 0.00095 | R31: 0.07337052502 | S31: 0.0553433537 | T31: 0.03479953994
A32: 0.001 | B32: 0.0711698352 | C32: 1.038043927e-05 | G32: 0.0005 | H32: 8.838609375e-11 | I32: 6.290423726e-12 | Q32: 0.001 | R32: 0.0711698352 | S32: 0.0529866861 | T32: 0.03245454398
A33: 0.00105 | B33: 0.06921442838 | C33: 7.438005225e-06 | G33: 0.00045 | H33: 7.160671875e-11 | I33: 4.956218106e-12 | Q33: 0.00105 | R33: 0.06921442838 | S33: 0.05089976456 | T33: 0.03041063783
A34: 0.0011 | B34: 0.06749329376 | C34: 5.143415383e-06 | G34: 0.0004 | H34: 5.659359375e-11 | I34: 3.819688048e-12 | Q34: 0.0011 | R34: 0.06749329376 | S34: 0.04906771363 | T34: 0.02864889522
A35: 0.00115 | B35: 0.06599678991 | C35: 3.398309826e-06 | G35: 0.00035 | H35: 4.334671875e-11 | I35: 2.860744291e-12 | Q35: 0.00115 | R35: 0.06599678991 | S35: 0.04747738583 | T35: 0.02715300793
A36: 0.0012 | B36: 0.06471659448 | C36: 2.114076973e-06 | G36: 0.0003 | H36: 3.186609375e-11 | I36: 2.062265067e-12 | Q36: 0.0012 | R36: 0.06471659448 | S36: 0.04611720159 | T36: 0.02590913483
A37: 0.00125 | B37: 0.06364567952 | C37: 1.210359038e-06 | G37: 0.00025 | H37: 2.215171875e-11 | I37: 1.409861192e-12 | Q37: 0.00125 | R37: 0.06364567952 | S37: 0.04497694776 | T37: 0.0249057738
A38: 0.0013 | B38: 0.06277834201 | C38: 6.136708404e-07 | G38: 0.0002 | H38: 1.420359375e-11 | I38: 8.916780662e-13 | Q38: 0.0013 | R38: 0.06277834201 | S38: 0.04404745921 | T38: 0.02413365539
A39: 0.00135 | B39: 0.06211039848 | C39: 2.56113243e-07 | G39: 0.00015 | H39: 8.02171875e-12 | I39: 4.982321481e-13 | Q39: 0.00135 | R39: 0.06211039848 | S39: 0.04331995587 | T39: 0.02358565719
A40: 0.0014 | B40: 0.06164009015 | C40: 7.416366434e-08 | G40: 0.0001 | H40: 3.60609375e-12 | I40: 2.222799439e-13 | Q40: 0.0014 | R40: 0.06164009015 | S40: 0.04278413734 | T40: 0.0232567381
A41: 0.00145 | B41: 0.06137461895 | C41: 7.527061193e-09 | G41: 5e-05 | H41: =(3*3.14/4)*((G41+$B$9/2)^3) -> 9.93515625e-13 | I41: 6.097664291e-14 | Q41: 0.00145 | R41: 0.06137461895 | S41: 0.04241941358 | T41: 0.02314389199
H42: 球全体積= | I42: 全mol=
H43: =SUM(H12:H41) -> 7.948125e-09 | I43: =SUM(I12:I41) -> 1.035684812e-09
H44: =(3*3.14/4)*G4^3 -> 7.948125e-09
I45: cA~[mol/m3]=
I46: =I43/H43 -> 0.1303055515
I47: (4/3)πR^3k1cA~[mol/s]= | L47: 表面濃度勾配からのη（普通の定義）
I48: =(4/3)*3.14*G4^3*G2*I46 -> 4.787165351e-09 | L48: =K12/I50 -> 0.658060963
I49: (4/3)πR^3k1cAs[mol/s]= | L49: 濃度積分値からのη
I50: =(4/3)*3.14*G4^3*G2*B12 -> 6.98022e-09 | L50: =I48/I50 -> 0.6858186922
I52: RAp[mol/m3-s] | L52: φ=
I53: =I46*G2 -> 0.3387944339

Sheet 球座標解析解
A1: R | B1: 0.0015 | C1: m
A2: k1 | B2: 2.6 | C2: /s
A3: DAB | B3: 7e-07 | C3: m2/s
A4: h | B4: =B1*SQRT(B2/B3) -> 2.890872335
A5: ｃAｓ | B5: 0.19
A6: r | B6: cA/cA0 | C6: cA | D6: y
A7: 0
A8: 0.0001 | B8: =($B$1/A8)*SINH($B$4*A8/$B$1)/SINH($B$4) -> 0.324037533 | C8: =B8*$B$5 -> 0.06156713126 | D8: =$B$1-A8 -> 0.0014
A9: 0.0003 | B9: =($B$1/A9)*SINH($B$4*A9/$B$1)/SINH($B$4) -> 0.3402847768 | C9: =B9*$B$5 -> 0.0646541076 | D9: =$B$1-A9 -> 0.0012
A10: 0.0005 | B10: 0.374245611 | C10: 0.07110666609 | D10: 0.001
A11: 0.0007 | B11: 0.4290102768 | C11: 0.0815119526 | D11: 0.0008
A12: 0.0009 | B12: 0.5096264396 | C12: 0.09682902352 | D12: 0.0006
A13: 0.0011 | B13: 0.6236478309 | C13: 0.1184930879 | D13: 0.0004
A14: 0.0013 | B14: 0.7819626633 | C14: 0.148572906 | D14: 0.0002
A15: 0.0014 | B15: 0.8823314421 | C15: 0.167642974 | D15: 0.0001

Sheet 触媒有効係数
C2: R=0.00075 | E2: R=0.0015 | G2: R=0.003 | M2: R=0.00075 | O2: R=0.0015 | Q2: R=0.003
C3: y[m] | D3: cA[mol/m3] | E3: y[m] | F3: cA[mol/m3] | G3: y[m] | H3: cA[mol/m3]
C4: 0 | D4: 0.19 | E4: 0 | F4: 0.19 | G4: 0 | H4: 0.19 | M4: 0.00075 | N4: 0.19 | O4: 0.0015 | P4: 0.19 | Q4: 0.003 | R4: 0.19 | T4: 0 | U4: 0
C5: 2.5e-05 | D5: 0.186202797 | E5: 5e-05 | F5: 0.1783899244 | G5: 0.0001 | H5: 0.1621864076 | M5: 0.000725 | N5: 0.186202797 | O5: 0.00145 | P5: 0.1783899244 | Q5: 0.0029 | R5: 0.1621864076 | T5: 0 | U5: 0.22
C6: 5e-05 | D6: 0.1825811532 | E6: 0.0001 | F6: 0.1676648437 | G6: 0.0002 | H6: 0.1386093751 | M6: 0.0007 | N6: 0.1825811532 | O6: 0.0014 | P6: 0.1676648437 | Q6: 0.0028 | R6: 0.1386093751
C7: 7.5e-05 | D7: 0.179129876 | E7: 0.00015 | F7: 0.157758634 | G7: 0.0003 | H7: 0.1186110974 | M7: 0.000675 | N7: 0.179129876 | O7: 0.00135 | P7: 0.157758634 | Q7: 0.0027 | R7: 0.1186110974
C8: 0.0001 | D8: 0.1758440297 | E8: 0.0002 | F8: 0.1486105373 | G8: 0.0004 | H8: 0.1016374926 | M8: 0.00065 | N8: 0.1758440297 | O8: 0.0013 | P8: 0.1486105373 | Q8: 0.0026 | R8: 0.1016374926
C9: 0.000125 | D9: 0.1727189278 | E9: 0.00025 | F9: 0.1401647371 | G9: 0.0005 | H9: 0.08722167607 | M9: 0.000625 | N9: 0.1727189278 | O9: 0.00125 | P9: 0.1401647371 | Q9: 0.0025 | R9: 0.08722167607
C10: 0.00015 | D10: 0.1697501253 | E10: 0.0003 | F10: 0.1323699698 | G10: 0.0006 | H10: 0.07497009169 | M10: 0.0006 | N10: 0.1697501253 | O10: 0.0012 | P10: 0.1323699698 | Q10: 0.0024 | R10: 0.07497009169
C11: 0.000175 | D11: 0.1669334118 | E11: 0.00035 | F11: 0.1251791688 | G11: 0.0007 | H11: 0.06455087113 | M11: 0.000575 | N11: 0.1669334118 | O11: 0.00115 | P11: 0.1251791688 | Q11: 0.0023 | R11: 0.06455087113
C12: 0.0002 | D12: 0.1642648057 | E12: 0.0004 | F12: 0.1185491386 | G12: 0.0008 | H12: 0.05568405948 | M12: 0.00055 | N12: 0.1642648057 | O12: 0.0011 | P12: 0.1185491386 | Q12: 0.0022 | R12: 0.05568405948
C13: 0.000225 | D13: 0.1617405479 | E13: 0.00045 | F13: 0.1124402566 | G13: 0.0009 | H13: 0.04813340688 | M13: 0.000525 | N13: 0.1617405479 | O13: 0.00105 | P13: 0.1124402566 | Q13: 0.0021 | R13: 0.04813340688
C14: 0.00025 | D14: 0.1593570975 | E14: 0.0005 | F14: 0.1068162001 | G14: 0.001 | H14: 0.04169947314 | M14: 0.0005 | N14: 0.1593570975 | O14: 0.001 | P14: 0.1068162001 | Q14: 0.002 | R14: 0.04169947314
C15: 0.000275 | D15: 0.1571111269 | E15: 0.00055 | F15: 0.1016436971 | G15: 0.0011 | H15: 0.03621383413 | M15: 0.000475 | N15: 0.1571111269 | O15: 0.00095 | P15: 0.1016436971 | Q15: 0.0019 | R15: 0.03621383413
C16: 0.0003 | D16: 0.1549995191 | E16: 0.0006 | F16: 0.09689229871 | G16: 0.0012 | H16: 0.0315342126 | M16: 0.00045 | N16: 0.1549995191 | O16: 0.0009 | P16: 0.09689229871 | Q16: 0.0018 | R16: 0.0315342126
C17: 0.000325 | D17: 0.1530193656 | E17: 0.00065 | F17: 0.09253417064 | G17: 0.0013 | H17: 0.0275403851 | M17: 0.000425 | N17: 0.1530193656 | O17: 0.00085 | P17: 0.09253417064 | Q17: 0.0017 | R17: 0.0275403851
C18: 0.00035 | D18: 0.1511679658 | E18: 0.0007 | F18: 0.08854390422 | G18: 0.0014 | H18: 0.02413074036 | M18: 0.0004 | N18: 0.1511679658 | O18: 0.0008 | P18: 0.08854390422 | Q18: 0.0016 | R18: 0.02413074036
C19: 0.000375 | D19: 0.1494428285 | E19: 0.00075 | F19: 0.0848983437 | G19: 0.0015 | H19: 0.02121938491 | M19: 0.000375 | N19: 0.1494428285 | O19: 0.00075 | P19: 0.0848983437 | Q19: 0.0015 | R19: 0.02121938491
C20: 0.0004 | D20: 0.1478416769 | E20: 0.0008 | F20: 0.08157642955 | G20: 0.0016 | H20: 0.01873370789 | M20: 0.00035 | N20: 0.1478416769 | O20: 0.0007 | P20: 0.08157642955 | Q20: 0.0014 | R20: 0.01873370789
C21: 0.000425 | D21: 0.1463624577 | E21: 0.00085 | F21: 0.07855905639 | G21: 0.0017 | H21: 0.01661233154 | M21: 0.000325 | N21: 0.1463624577 | O21: 0.00065 | P21: 0.07855905639 | Q21: 0.0013 | R21: 0.01661233154
C22: 0.00045 | D22: 0.1450033566 | E22: 0.0009 | F22: 0.07582894465 | G22: 0.0018 | H22: 0.01480338458 | M22: 0.0003 | N22: 0.1450033566 | O22: 0.0006 | P22: 0.07582894465 | Q22: 0.0012 | R22: 0.01480338458
C23: 0.000475 | D23: 0.1437628262 | E23: 0.00095 | F23: 0.07337052502 | G23: 0.0019 | H23: 0.01326304511 | M23: 0.000275 | N23: 0.1437628262 | O23: 0.00055 | P23: 0.07337052502 | Q23: 0.0011 | R23: 0.01326304511
C24: 0.0005 | D24: 0.1426396309 | E24: 0.001 | F24: 0.0711698352 | G24: 0.002 | H24: 0.01195430612 | M24: 0.00025 | N24: 0.1426396309 | O24: 0.0005 | P24: 0.0711698352 | Q24: 0.001 | R24: 0.01195430612
C25: 0.000525 | D25: 0.141632926 | E25: 0.00105 | F25: 0.06921442838 | G25: 0.0021 | H25: 0.01084592011 | M25: 0.000225 | N25: 0.141632926 | O25: 0.00045 | P25: 0.06921442838 | Q25: 0.0009 | R25: 0.01084592011
C26: 0.00055 | D26: 0.1407423972 | E26: 0.0011 | F26: 0.06749329376 | G26: 0.0022 | H26: 0.009911477778 | M26: 0.0002 | N26: 0.1407423972 | O26: 0.0004 | P26: 0.06749329376 | Q26: 0.0008 | R26: 0.009911477778
C27: 0.000575 | D27: 0.1399685233 | E27: 0.00115 | F27: 0.06599678991 | G27: 0.0023 | H27: 0.009128563253 | M27: 0.000175 | N27: 0.1399685233 | O27: 0.00035 | P27: 0.06599678991 | Q27: 0.0007 | R27: 0.009128563253
C28: 0.0006 | D28: 0.1393131033 | E28: 0.0012 | F28: 0.06471659448 | G28: 0.0024 | H28: 0.008477889358 | M28: 0.00015 | N28: 0.1393131033 | O28: 0.0003 | P28: 0.06471659448 | Q28: 0.0006 | R28: 0.008477889358
C29: 0.000625 | D29: 0.1387804195 | E29: 0.00125 | F29: 0.06364567952 | G29: 0.0025 | H29: 0.007942198367 | M29: 0.000125 | N29: 0.1387804195 | O29: 0.00025 | P29: 0.06364567952 | Q29: 0.0005 | R29: 0.007942198367
C30: 0.00065 | D30: 0.1383801487 | E30: 0.0013 | F30: 0.06277834201 | G30: 0.0026 | H30: 0.007504322277 | M30: 0.0001 | N30: 0.1383801487 | O30: 0.0002 | P30: 0.06277834201 | Q30: 0.0004 | R30: 0.007504322277
C31: 0.000675 | D31: 0.1381360981 | E31: 0.00135 | F31: 0.06211039848 | G31: 0.0027 | H31: 0.007142220896 | M31: 7.5e-05 | N31: 0.1381360981 | O31: 0.00015 | P31: 0.06211039848 | Q31: 0.0003 | R31: 0.007142220896
C32: 0.0007 | D32: 0.1381211591 | E32: 0.0014 | F32: 0.06164009015 | G32: 0.0028 | H32: 0.00681013964 | M32: 5e-05 | N32: 0.1381211591 | O32: 0.0001 | P32: 0.06164009015 | Q32: 0.0002 | R32: 0.00681013964
C33: 0.000725 | D33: 0.138702004 | E33: 0.00145 | F33: 0.06137461895 | G33: 0.0029 | H33: 0.006308266406 | M33: 2.5e-05 | N33: 0.138702004 | O33: 5e-05 | P33: 0.06137461895 | Q33: 0.0001 | R33: 0.006308266406
M34: -2.5e-05 | N34: 0.138702004 | O34: -5e-05 | P34: 0.06137461895 | Q34: -0.0001 | R34: 0.006308266406
B35: R | C35: 0.00075 | E35: 0.0015 | G35: 0.003 | M35: -5e-05 | N35: 0.1381211591 | O35: -0.0001 | P35: 0.06164009015 | Q35: -0.0002 | R35: 0.00681013964
B36: k1 | C36: 2.6 | E36: 2.6 | G36: 2.6 | M36: -7.5e-05 | N36: 0.1381360981 | O36: -0.00015 | P36: 0.06211039848 | Q36: -0.0003 | R36: 0.007142220896
B37: DAB | C37: 7e-07 | E37: 7e-07 | G37: 7e-07 | M37: -0.0001 | N37: 0.1383801487 | O37: -0.0002 | P37: 0.06277834201 | Q37: -0.0004 | R37: 0.007504322277
A38: Thiele数 | B38: (R/3)√k1/D | C38: =(C35/3)*(C36/C37)^0.5 -> 0.4818120558 | E38: =(E35/3)*(E36/E37)^0.5 -> 0.9636241117 | G38: =(G35/3)*(G36/G37)^0.5 -> 1.927248223 | M38: -0.000125 | N38: 0.1387804195 | O38: -0.00025 | P38: 0.06364567952 | Q38: -0.0005 | R38: 0.007942198367
M39: -0.00015 | N39: 0.1393131033 | O39: -0.0003 | P39: 0.06477592371 | Q39: -0.0006 | R39: 0.008477889358
B40: (dcA/dy)表面 | E40: 232.2015 | G40: 278.1359235 | M40: -0.000175 | N40: 0.1399685233 | O40: -0.00035 | P40: 0.06608722324 | Q40: -0.0007 | R40: 0.009128563253
A41: 4πR2DABcA' | E41: 4.593e-09 | G41: 2.201e-08 | M41: -0.0002 | N41: 0.1407423972 | O41: -0.0004 | P41: 0.06760396992 | Q41: -0.0008 | R41: 0.009911477778
A42: (4/3)πR^3k1cAs[mol/s]= | E42: 6.98e-09 | G42: 5.584e-08 | M42: -0.000225 | N42: 0.141632926 | O42: -0.00045 | P42: 0.06933828894 | Q42: -0.0009 | R42: 0.01084592011
B43: η | C43: 0.86 | E43: =E41/E42 -> 0.6580229226 | G43: =G41/G42 -> 0.3941618911 | M43: -0.00025 | N43: 0.1426396309 | O43: -0.0005 | P43: 0.07130207211 | Q43: -0.001 | R43: 0.01195430612
M44: -0.000275 | N44: 0.1437628262 | O44: -0.00055 | P44: 0.07350773442 | Q44: -0.0011 | R44: 0.01326304511
M45: -0.0003 | N45: 0.1450033566 | O45: -0.0006 | P45: 0.07596863351 | Q45: -0.0012 | R45: 0.01480338458
M46: -0.000325 | N46: 0.1463624577 | O46: -0.00065 | P46: 0.07869933897 | Q46: -0.0013 | R46: 0.01661233154
M47: -0.00035 | N47: 0.1478416769 | O47: -0.0007 | P47: 0.081715832 | Q47: -0.0014 | R47: 0.01873370789
M48: -0.000375 | N48: 0.1494428285 | O48: -0.00075 | P48: 0.08503567342 | Q48: -0.0015 | R48: 0.02121938491
M49: -0.0004 | N49: 0.1511679658 | O49: -0.0008 | P49: 0.08867815937 | Q49: -0.0016 | R49: 0.02413074036
A50: 触媒有効係数とシーレ数 | M50: -0.000425 | N50: 0.1530193656 | O50: -0.00085 | P50: 0.09266447549 | Q50: -0.0017 | R50: 0.0275403851
A51: シーレ数 | B51: 球 | D51: 平板 | F51: 円柱 | M51: -0.00045 | N51: 0.1549995191 | O51: -0.0009 | P51: 0.09701785594 | Q51: -0.0018 | R51: 0.0315342126
A52: φ | B52: η | D52: η | F52: η | M52: -0.000475 | N52: 0.1571111269 | O52: -0.00095 | P52: 0.1017637515 | Q52: -0.0019 | R52: 0.03621383413
A53: 0.1 | B53: =(1/A53)*(1/TANH(3*A53)-1/(3*A53)) -> 0.9940509699 | D53: =(1/A53)*TANH(A53) -> 0.9966799462 | F53: =(1/A53)*BESSELI(2*A53,1)/BESSELI(2*A53,0) -> 0.9950331097 | M53: -0.0005 | N53: 0.1593570975 | O53: -0.001 | P53: 0.10693001 | Q53: -0.002 | R53: 0.04169947314
A54: 0.3 | B54: =(1/A54)*(1/TANH(3*A54)-1/(3*A54)) -> 0.9498538064 | D54: 0.9710420415 | F54: 0.9575427362 | M54: -0.000525 | N54: 0.1617405479 | O54: -0.00105 | P54: 0.1125470707 | Q54: -0.0021 | R54: 0.04813340688
A55: 0.5 | B55: 0.8762494526 | D55: 0.9242343145 | F55: 0.8927799426 | M55: -0.00055 | N55: 0.1642648057 | O55: -0.0011 | P55: 0.1186481763 | Q55: -0.0022 | R55: 0.05568405948
A56: 0.65 | B56: 0.8130764775 | D56: 0.8794922555 | F56: 0.8348730801 | M56: -0.000575 | N56: 0.1669334118 | O56: -0.00115 | P56: 0.1252696029 | Q56: -0.0023 | R56: 0.06455087113
A57: 0.8 | B57: =(1/A57)*(1/TANH(3*A57)-1/(3*A57)) -> 0.7499117612 | D57: 0.8300459628 | F57: 0.7748733061 | M57: -0.0006 | N57: 0.1697501253 | O57: -0.0012 | P57: 0.132450911 | Q57: -0.0024 | R57: 0.07497009169
A58: 1 | B58: 0.67163649 | D58: 0.761594156 | F58: 0.6977746576 | M58: -0.000625 | N58: 0.1727189278 | O58: -0.00125 | P58: 0.1402352193 | Q58: -0.0025 | R58: 0.08722167607
A59: 1.3 | B59: 0.5726227303 | D59: 0.6628639687 | F59: 0.5965004194 | M59: -0.00065 | N59: 0.1758440297 | O59: -0.0013 | P59: 0.1486695033 | Q59: -0.0026 | R59: 0.1016374926
A60: 1.5 | B60: 0.5186830852 | D60: 0.6034321691 | F60: 0.5399901982 | M60: -0.000675 | N60: 0.179129876 | O60: -0.00135 | P60: 0.1578049212 | Q60: -0.0027 | R60: 0.1186110974
A61: 2 | B61: 0.4166728109 | D61: 0.48201379 | F61: 0.4317612973 | M61: -0.0007 | N61: 0.1825811532 | O61: -0.0014 | P61: 0.1676971696 | Q61: -0.0028 | R61: 0.1386093751
A62: 3 | B62: 0.2962963064 | D62: 0.3316849179 | F62: 0.3041197677 | M62: -0.000725 | N62: 0.186202797 | O62: -0.00145 | P62: 0.1784068716 | Q62: -0.0029 | R62: 0.1621864076
A63: 5 | B63: 0.1866666667 | D63: 0.1999818409 | F63: 0.1897199639 | M63: -0.00075 | N63: 0.19 | O63: -0.0015 | P63: 0.19 | Q63: -0.003 | R63: 0.19
A64: 6.5 | B64: 0.1459566075 | D64: 0.1538454584 | F64: 0.1478051959
A65: 8 | B65: 0.1197916667 | D65: 0.1249999719 | F65: 0.1210284657
A66: 10 | B66: 0.09666666667 | D66: 0.09999999959 | F66: 0.09746703363
A67: 30 | B67: 0.03296296296 | D67: 0.03333333333 | F67: 0.03305440556
A68: 50 | B68: 0.01986666667 | D68: 0.02 | F68: 0.01989976776
A69: 80 | B69: 0.01244791667 | D69: 0.0125 | F69: 0.01246088738
A70: 100 | B70: 0.009966666667 | D70: 0.01 | F70: 0.009974976677
A72: 例題23の条件の数値解
B73: φ | C73: η
A74: 球 | B74: 0.96 | C74: 0.658
A75: 円柱 | B75: 1.45 | C75: 0.53
A76: 平板 | B76: 1.45 | C76: 0.65
